[Event "Romanian Team Blitz Women 2022"]
[Site "Sebes"]
[Date "2022.12.04"]
[Round "3.6"]
[White "Hoanca, Alexia-Ioana"]
[Black "Ciolacu, Alessia-Mihaela"]
[Result "1/2-1/2"]
[ECO "C26"]
[WhiteElo "1644"]
[BlackElo "2097"]
[Annotator "TA"]
[PlyCount "109"]
[EventDate "2022.12.04"]
[EventType "blitz"]
[EventCountry "ROU"]
[SourceTitle "playchess.com"]
[Source "ChessBase"]
[SourceQuality "1"]
[TimeControl "180+2"]

{[%evp 9,109,8,43,47,41,48,54,54,63,52,46,41,69,24,39,0,0,0,0,-5,0,-21,7,0,42,8,6,0,201,12,24,0,41,48,43,0,0,-12,110,103,106,0,6,8,18,-40,-30,-27,-20,-51,-45,-111,-100,-98,-50,-109,0,0,0,0,0,0,0,0,0,0,0,0,0,0,0,0,0,0,0,0,0,0,0,0,0,0,0,0,0,0,0,-29983,0,0,0,0,0,0,0,0,0,0,0,0,0,0]} 1. e4 {[%emt 0:00:02]} e5 {[%emt 0:00:01]} 2. Nc3 {[%emt 0:00:01]} Nf6 {[%emt 0:00:03]} 3. g3 {[%emt 0:00:00]} d5 {[%emt 0:00:05]} 4. exd5 {[%emt 0:00:01]} Nxd5 {[%emt 0:00:01]} 5. Bg2 {[%emt 0:00:02]} Be6 {[%emt 0:00:03]} 6. Nf3 $1 {[%emt 0:00:08] C26: Vienna Game: 2...Nf6, sidelines .} Nxc3 {[%emt 0:00:12]} 7. bxc3 {[%emt 0:00:01]} Nc6 {[%emt 0:00:04]} 8. O-O {[%emt 0:00:06] White is slightly better.} Be7 {[%emt 0:00:01]} 9. Re1 {[%emt 0:00:05] Against e4} f6 {[%emt 0:00:54]} 10. d4 {[%emt 0:00:31]} O-O {[%emt 0:00:05] [#]} 11. a4 $146 {[%emt 0:00:10]} (11. Qe2 $5 {[%cal Rd4e5]}) ({Predecessor:} 11. Be3 Qe8 12. Qb1 Rb8 13. Nxe5 fxe5 14. d5 Bf5 15. dxc6 bxc6 16. Qd1 Qg6 17. Bxa7 Bxc2 {0-1 (50) Golubev,M (2461)-Plotnikov,P (2297) Chess.com INT 2020}) 11... Qd7 {[%emt 0:00:06]} 12. Ba3 {[%emt 0:00:41]} (12. dxe5 {feels hotter.} Qxd1 13. Rxd1 fxe5 14. Ng5) 12... Bxa3 {[%emt 0:00:02]} 13. Rxa3 {[%emt 0:00:01][%cal Rd4e5]} Rad8 {[%emt 0:00:02]} 14. Ra1 {[%emt 0:00:08][%cal Rd4e5]} exd4 {[%emt 0:00:11]} 15. cxd4 {[%emt 0:00:04]} Bg4 {[%emt 0:00:03]} 16. c3 {[%emt 0:00:05] Qb3+ is the strong threat.} Kh8 {[%emt 0:00:06]} 17. Qb3 {[%emt 0:00:28]} Na5 {[%emt 0:00:09]} 18. Qb5 {[%emt 0:00:10]} Qf5 $2 {[%emt 0:00:49]} (18... b6 $11) 19. Qxf5 $2 {[%emt 0:00:22]} (19. h3 $1 $18 {[%cal Rh3g4]} Qxb5 20. axb5 Bxf3 21. Bxf3 (21. Rxa5 Bxg2 22. Kxg2 Ra8 $16)) 19... Bxf5 $11 {[%emt 0:00:01]} 20. Re7 {[%emt 0:00:02]} (20. d5 $5 {[%cal Rf3d4]}) 20... Rd7 {[%emt 0:00:06]} 21. Rae1 {[%emt 0:00:06]} c6 {[%emt 0:00:10]} 22. Rxd7 {[%emt 0:00:11]} (22. Nh4 $5 {[%cal Rh4f5]} Rxe7 23. Rxe7 $14) 22... Bxd7 {[%emt 0:00:01]} 23. Re7 {[%emt 0:00:01]} Bc8 {[%emt 0:00:01]} (23... Rd8 $11 {keeps the balance.}) 24. Nd2 $16 {[%emt 0:00:16]} Kg8 {[%emt 0:00:14] [#]} 25. Nf1 {[%emt 0:00:03] White is much more active.} (25. Ne4 $1 $16) 25... Nc4 {[%emt 0:00:02]} 26. Ne3 {[%emt 0:00:01]} Nd6 {[%emt 0:00:07]} 27. Bf1 {[%emt 0:00:03]} (27. d5 $11) 27... Rf7 $15 {[%emt 0:00:04]} 28. Rxf7 {[%emt 0:00:03]} Kxf7 $11 {[%emt 0:00:01][%mdl 4096] Endgame KBN-KBN} 29. Nc4 {[%emt 0:00:02]} Ke6 {[%emt 0:00:02]} ({Don't do} 29... Ne4 30. f3 b5 31. fxe4 $16) 30. Nxd6 {[%emt 0:00:02]} (30. f3 $15) 30... Kxd6 $15 {[%emt 0:00:01] KB-KB} 31. Bd3 {[%emt 0:00:01][%cal Og1g2]} g6 {[%emt 0:00:03]} (31... c5 $17 {Threatens to win with ...cxd4.} 32. dxc5+ (32. Bxh7 cxd4 33. cxd4 Kd5 $17) 32... Kxc5) 32. a5 {[%emt 0:00:01]} (32. Kf1 $1 $15) 32... b6 {[%emt 0:00:06]} ({Black should play} 32... Bf5 $17 33. Be2 c5 34. dxc5+ Kxc5) 33. axb6 $11 {[%emt 0:00:02]} axb6 {[%emt 0:00:01]} 34. Kf1 {[%emt 0:00:01]} c5 {[%emt 0:00:02]} 35. dxc5+ {[%emt 0:00:04]} Kxc5 {[%emt 0:00:02]} 36. Ke2 {[%emt 0:00:01]} Bg4+ {[%emt 0:00:05]} 37. f3 {[%emt 0:00:01]} Be6 {[%emt 0:00:02]} 38. f4 {[%emt 0:00:02]} Bc4 {[%emt 0:00:01]} 39. Kd2 {[%emt 0:00:01]} Bxd3 {[%emt 0:00:04]} 40. Kxd3 {[%emt 0:00:01] KP-KP} b5 {[%emt 0:00:01]} 41. Kd2 {[%emt 0:00:03]} Kc4 {[%emt 0:00:02]} 42. Kc2 {[%emt 0:00:01]} h6 {[%emt 0:00:03]} 43. g4 {[%emt 0:00:04]} f5 {[%emt 0:00:02]} 44. gxf5 {[%emt 0:00:03]} gxf5 {[%emt 0:00:01] K3P-K3P} 45. h3 {[%emt 0:00:02]} h5 {[%emt 0:00:02]} 46. h4 {[%emt 0:00:00]} Kc5 {[%emt 0:00:05]} (46... Kd5 $5 47. Kd3 $8 Kc6 $11) 47. Kd3 {[%emt 0:00:04]} Kd5 {[%emt 0:00:01]} 48. Kd2 $2 {[%emt 0:00:04][%mdl 8192] [#]} (48. Ke3 $11) 48... Kc4 $2 {[%emt 0:00:01]} (48... Ke4 {mates} 49. Kc2 Kxf4 50. Kb3 Kg3 51. Kb4 f4 52. Kxb5 f3 53. c4 f2 54. Kc6 f1=Q 55. c5 Kxh4 56. Kc7 Kg4 57. c6 Qb5 58. Kd6 h4 59. c7 Qf5 60. Kc6 Qc8 61. Kd6 h3 62. Ke5 h2 63. Kd6 h1=Q 64. Ke5 Qxc7+ 65. Kd4 Qd1+ 66. Ke4 Qf4#) 49. Kc2 {[%emt 0:00:01] The position is equal.} b4 {[%emt 0:00:05]} 50. cxb4 Kxb4 {[%emt 0:00:01]} 51. Kd3 {[%emt 0:00:05] White wants to mate with Kd4.} Kc5 {[%emt 0:00:01]} 52. Kc3 $1 {[%emt 0:00:02]} Kd5 {[%emt 0:00:01]} 53. Kd3 {[%emt 0:00:01]} Kc5 {[%emt 0:00:02]} 54. Kc3 $1 {[%emt 0:00:01]} Kd5 {[%emt 0:00:01] ( -> ...Ke4)} 55. Kd3 {[%emt 0:00:10] Weighted Error Value: White=0.37/Black=0.33} 1/2-1/2

[Event "Romanian Team Blitz Women 2022"]
[Site "Sebes"]
[Date "2022.12.04"]
[Round "4.1"]
[White "Voicu-Jagodzinsky, Carmen"]
[Black "Bulmaga, Irina"]
[Result "0-1"]
[ECO "C54"]
[WhiteElo "2300"]
[BlackElo "2426"]
[Annotator "TA"]
[PlyCount "40"]
[EventDate "2022.12.04"]
[EventType "blitz"]
[EventCountry "ROU"]
[SourceTitle "playchess.com"]
[Source "ChessBase"]
[SourceQuality "1"]
[TimeControl "180+2"]

{[%evp 10,40,33,13,57,22,16,15,21,14,14,0,0,-19,0,2,16,0,-5,0,17,-79,-55,-60,-61,-60,-70,-62,-18,-164,-8,-1215,-1074]} 1. e4 {[%emt 0:00:01]} e5 {[%emt 0:00:02]} 2. Nf3 {[%emt 0:00:02]} Nc6 {[%emt 0:00:02]} 3. Bc4 {[%emt 0:00:01]} Bc5 {[%emt 0:00:03]} 4. c3 {[%emt 0:00:00]} Nf6 {[%emt 0:00:02]} 5. d3 {[%emt 0:00:01]} a6 {[%emt 0:00:05]} 6. Bb3 {[%emt 0:00:10]} h6 {[%emt 0:00:04] C54: Giuoco Piano: 4 c3 Nf6, main lines with 5 d4 and 5 d3.} 7. Nbd2 {[%emt 0:00:08]} d6 {[%emt 0:00:04]} 8. h3 {[%emt 0:00:01]} Ba7 {[%emt 0:00:04] The position is equal.} 9. Nf1 {[%emt 0:00:02]} Be6 {[%emt 0:00:06]} 10. Bc2 {[%emt 0:00:06]} d5 {[%emt 0:00:04]} 11. Qe2 {[%emt 0:00:10]} dxe4 {[%emt 0:00:08]} 12. dxe4 {[%emt 0:00:01]} Qe7 {[%emt 0:00:11]} 13. Ne3 {[%emt 0:00:05]} Rd8 {[%emt 0:00:15]} 14. O-O {[%emt 0:00:42]} O-O {[%emt 0:00:02] [#]} 15. Nf5 $146 {[%emt 0:00:06]} (15. Nh4 $11) ({Predecessor:} 15. Nh2 Rfe8 16. Qf3 Qf8 17. Nf5 Nh7 18. h4 Ne7 19. h5 Nxf5 20. exf5 {0-1 (48) Komliakov,V (2460)-Frolov,D (2330) Seversk 1997}) 15... Bxf5 $17 {[%emt 0:00:04]} 16. exf5 {[%emt 0:00:01]} e4 {[%emt 0:00:05]} 17. Nh2 {[%emt 0:00:32]} Rfe8 $1 $36 {[%emt 0:00:07][%mdl 2048] Black has good play.} 18. Ng4 {[%emt 0:00:08]} Nxg4 {[%emt 0:00:04]} 19. hxg4 {[%emt 0:00:22] [#]} (19. Qxg4 $11 {and White is okay.} e3 20. fxe3) 19... e3 $2 {[%emt 0:00:15]} (19... Qh4 $1 $19 {And now ...Ne5 would win.} 20. f6 gxf6) 20. f4 {[%emt 0:00:15][%mdl 8192] [#] Prevents Ne5.} (20. Bxe3 $11 Bxe3 21. fxe3) 20... Rd2 $1 {[%emt 0:00:10][%mdl 512] Weighted Error Value: White=0.75/Black=0.29 (precise)} 0-1

[Event "Romanian Team Blitz Women 2022"]
[Site "Sebes"]
[Date "2022.12.04"]
[Round "4.2"]
[White "Cosma, Elena-Luminita"]
[Black "Visanescu, Daria-Ioana"]
[Result "1-0"]
[ECO "D34"]
[WhiteElo "2244"]
[BlackElo "2117"]
[Annotator "TA"]
[PlyCount "51"]
[EventDate "2022.12.04"]
[EventType "blitz"]
[EventCountry "ROU"]
[SourceTitle "playchess.com"]
[Source "ChessBase"]
[SourceQuality "1"]
[TimeControl "180+2"]

{[%evp 23,51,30,51,34,71,0,0,0,0,-18,20,0,0,0,-8,-376,-26,-37,-7,-2,0,14,87,0,89,84,306,316,1006,975]} 1. d4 {[%emt 0:00:01]} d5 {[%emt 0:00:01]} 2. c4 {[%emt 0:00:01]} e6 {[%emt 0:00:01]} 3. Nf3 {[%emt 0:00:01]} c5 {[%emt 0:00:02]} 4. cxd5 {[%emt 0:00:02]} exd5 {[%emt 0:00:02]} 5. g3 {[%emt 0:00:01]} Nf6 {[%emt 0:00:03]} 6. Bg2 {[%emt 0:00:00]} Nc6 {[%emt 0:00:01]} 7. O-O {[%emt 0:00:02]} Be7 {[%emt 0:00:05]} 8. Nc3 {[%emt 0:00:10]} Be6 {[%emt 0:00:12]} 9. dxc5 {[%emt 0:00:05]} Bxc5 {[%emt 0:00:03]} 10. Bg5 {[%emt 0:00:02]} Be7 {[%emt 0:00:36]} 11. Nd4 {[%emt 0:00:02]} O-O {[%emt 0:00:08]} 12. Rc1 {[%emt 0:00:18]} h6 {[%emt 0:00:12]} 13. Bf4 {[%emt 0:00:26] D34: Tarrasch Defence: 6 g3 Nf6 7 Bg2 Be7.} Qb6 {[%emt 0:00:08][%csl LRb2,LRd4]} 14. Nxc6 {[%emt 0:00:15]} (14. Nxe6 $16 fxe6 15. Na4) 14... bxc6 $11 {[%emt 0:00:02]} 15. Na4 {[%emt 0:00:01] The position is equal.} Qb5 {[%emt 0:00:17] [#]} 16. Be3 $146 {[%emt 0:00:08]} ({Predecessor:} 16. Qc2 Rac8 17. Nc3 Qa6 18. Rfd1 Rfd8 19. Bf1 Qa5 20. Qa4 Qb6 21. h3 c5 22. Qc2 d4 23. Na4 {0-1 (37) Weber,B (2094)-Dietzsch,H (2180) Dresden 2006}) 16... Ne4 {[%emt 0:00:17]} 17. a3 {[%emt 0:00:11]} Rfc8 {[%emt 0:00:14]} 18. Bxe4 {[%emt 0:00:37]} dxe4 {[%emt 0:00:01]} 19. Bc5 $2 {[%emt 0:00:04][%mdl 8192] [#]} (19. Qc2 $11 {and White has nothing to worry.}) 19... Bf6 $2 {[%emt 0:00:18]} ({Black should play} 19... Bb3 $19 20. Nc3 Bxd1 21. Nxb5 cxb5 22. Rfxd1 Bxc5) 20. b4 $1 {[%emt 0:00:26]} Rd8 {[%emt 0:00:05]} 21. Qc2 {[%emt 0:00:05]} e3 {[%emt 0:00:17]} 22. Bxe3 {[%emt 0:00:05]} Bh3 {[%emt 0:00:03] [#] A strong pair of Bishops.} (22... Bf5 $11 {keeps the balance.} 23. Nc3 Qe5) 23. Rfd1 {[%emt 0:00:11]} ({But not} 23. Qxc6 Qxe2 24. Rfe1 Qd3 $15) (23. Rfe1 $1 $16) 23... Rdc8 {[%emt 0:00:25]} (23... Rxd1+ $11 {remains equal.} 24. Qxd1 Rd8) 24. Nc5 {[%emt 0:00:09]} Qb6 $2 {[%emt 0:00:11]} (24... a5 $16) 25. Ne4 $18 {[%emt 0:00:07]} Be7 $2 {[%emt 0:00:03]} (25... c5 26. bxc5 (26. Nxc5 a5 $16) 26... Qb2 27. Nxf6+ Qxf6) 26. Bxb6 {[%emt 0:00:02] Quite a comeback for White.   Weighted Error Value: White=0.55/Black=0.99} 1-0

[Event "Romanian Team Blitz Women 2022"]
[Site "Sebes"]
[Date "2022.12.04"]
[Round "4.3"]
[White "Bucur, Denisa-Andreea"]
[Black "Ciolacu, Alessia-Mihaela"]
[Result "0-1"]
[ECO "D37"]
[WhiteElo "1953"]
[BlackElo "2097"]
[Annotator "TA"]
[PlyCount "56"]
[EventDate "2022.12.04"]
[EventType "blitz"]
[EventCountry "ROU"]
[SourceTitle "playchess.com"]
[Source "ChessBase"]
[SourceQuality "1"]
[TimeControl "180+2"]

{[%evp 9,56,21,22,19,25,31,29,20,20,33,29,0,0,-13,-14,-20,-27,-97,-36,-41,-29,-36,-29,-50,-48,-77,-62,-102,-100,-119,-13,-16,-15,-54,0,-140,-140,-143,-122,-1203,-1202,-1116,-684,-29987,-29988,-29995,-29996,-29996,-29997]} 1. d4 {[%emt 0:00:02]} Nf6 {[%emt 0:00:01]} 2. Nf3 {[%emt 0:00:01]} e6 {[%emt 0:00:02]} 3. c4 {[%emt 0:00:01]} d5 {[%emt 0:00:02]} 4. Nc3 {[%emt 0:00:01]} a6 {[%emt 0:00:02]} 5. cxd5 {[%emt 0:00:02]} exd5 {[%emt 0:00:01]} 6. Bg5 {[%emt 0:00:01] D37: Queen's Gambit Declined: 5 Bf4.} Be6 {[%emt 0:00:03]} 7. e3 {[%emt 0:00:03]} Nbd7 {[%emt 0:00:04]} 8. Bd3 {[%emt 0:00:04] White has an edge.} c6 {[%emt 0:00:05]} 9. O-O {[%emt 0:00:04]} Bd6 {[%emt 0:00:04]} 10. Rb1 {[%emt 0:00:25]} O-O {[%emt 0:00:09] [#]} 11. e4 $146 {[%emt 0:00:07]} ({Predecessor:} 11. b4 b5 12. a4 h6 13. Bh4 Qe7 14. Qb3 Nb6 15. a5 Nc4 16. Rfe1 Bg4 17. Re2 {½-½ (66) Bharath,S (2479)-Sarana,A (2670) Chess.com INT 2022}) 11... dxe4 {[%emt 0:00:11]} 12. Nxe4 {[%emt 0:00:02]} Be7 {[%emt 0:00:01]} 13. Qc2 {[%emt 0:00:15]} (13. Nc3 $11) 13... h6 {[%emt 0:00:09]} (13... Bxa2 $17 14. Rbe1 Bd5) 14. Bxf6 $15 {[%emt 0:00:10]} Nxf6 {[%emt 0:00:01]} 15. b4 {[%emt 0:00:07]} Bd5 {[%emt 0:00:22]} 16. Nxf6+ {[%emt 0:00:16]} Bxf6 {[%emt 0:00:01] A strong pair of Bishops.} 17. Ne5 {[%emt 0:00:01]} Re8 {[%emt 0:00:08]} 18. Rfe1 {[%emt 0:00:03]} Qd6 {[%emt 0:00:12]} (18... Bxe5 {simplifies} 19. dxe5 Qg5 20. Be4 Rxe5 21. Bxd5 Rxd5 22. Re3 Rad8) 19. f4 {[%emt 0:00:04] [#]} b5 {[%emt 0:00:23]} ({Black should play} 19... Bxa2 $1 $17 {[%mdl 512]} 20. Bh7+ Kh8 21. Qxa2 Qxd4+ 22. Kh1 Kxh7 23. Qxf7 Bxe5 24. fxe5 Rxe5 25. Rxe5 Qxe5 26. Qxb7 Qe4) 20. a3 $11 {[%emt 0:00:04]} a5 {[%emt 0:00:01]} 21. Qc5 {[%emt 0:00:48]} (21. bxa5 {simplifies} Bxe5 22. fxe5 Qd8 23. Bh7+) 21... Qd8 {[%emt 0:00:22]} (21... Bxe5 $15 22. dxe5 Qxc5+ 23. bxc5 Reb8) 22. Bf5 {[%emt 0:00:28]} (22. Nxc6 $11 {keeps the balance.} Bxc6 23. Qxc6) 22... axb4 $17 {[%emt 0:00:04]} 23. axb4 {[%emt 0:00:01]} Ra2 {[%emt 0:00:05]} 24. Rbc1 $2 {[%emt 0:00:24][%mdl 8192] [#] This move loses the game for White.} (24. Nxc6 $17 Rxe1+ 25. Rxe1 Bxc6 26. Qxc6 Qxd4+ 27. Kh1) 24... Rxg2+ $19 {[%emt 0:00:03]} 25. Kf1 {[%emt 0:00:01]} Bxe5 {[%emt 0:00:11]} 26. dxe5 {[%emt 0:00:03]} Qh4 {[%emt 0:00:02] Black mates.} 27. Rc2 {[%emt 0:00:06]} Qxh2 {[%emt 0:00:14]} 28. Rf2 {[%emt 0:00:05]} Bc4+ {[%emt 0:00:02] Weighted Error Value: White=0.75/Black=0.56} 0-1

[Event "Romanian Team Blitz Women 2022"]
[Site "Sebes"]
[Date "2022.12.04"]
[Round "4.4"]
[White "Sariteanu, Sabina"]
[Black "Peptan, Corina-Isabela"]
[Result "1/2-1/2"]
[ECO "B21"]
[WhiteElo "1752"]
[BlackElo "2351"]
[Annotator "TA"]
[PlyCount "66"]
[EventDate "2022.12.04"]
[EventType "blitz"]
[EventCountry "ROU"]
[SourceTitle "playchess.com"]
[Source "ChessBase"]
[SourceQuality "1"]
[TimeControl "180+2"]

{[%evp 11,66,26,23,18,18,-11,0,3,37,0,54,-11,49,-79,-17,-9,-26,-64,-56,-111,-125,-199,-155,-143,-146,-196,-207,-202,-55,-224,8,8,8,8,8,34,20,25,531,555,29985,29986,29986,1934,29987,1045,1574,1031,1170,465,29994,29995,29995,1649,1262,0,29995]} 1. e4 {[%emt 0:00:01]} c5 {[%emt 0:00:02]} 2. d4 {[%emt 0:00:01]} cxd4 {[%emt 0:00:01]} 3. c3 {[%emt 0:00:01]} d3 {[%emt 0:00:04]} 4. Bxd3 {[%emt 0:00:02]} Nc6 {[%emt 0:00:00]} 5. c4 {[%emt 0:00:02]} g6 {[%emt 0:00:02]} 6. Nf3 {[%emt 0:00:05]} Bg7 {[%emt 0:00:00]} 7. O-O {[%emt 0:00:09] B21: Sicilian: 2 f4 and Morra Gambit.} d6 {[%emt 0:00:01]} 8. Qe2 {[%emt 0:00:08]} Bg4 {[%emt 0:00:05] [#]} 9. Nbd2 $146 {[%emt 0:00:31]} ({Predecessor:} 9. Rd1 Ne5 10. Nbd2 Nf6 11. h3 Bxf3 12. Nxf3 Nxf3+ 13. Qxf3 O-O 14. Qe2 Nd7 15. Be3 {1-0 (29) Sosa,T (2514)-Cappai,D (2217) Chess.com INT 2020}) 9... Ne5 {[%emt 0:00:40]} 10. Bc2 {[%emt 0:00:03]} Rc8 {[%emt 0:00:09]} (10... Qc7 $11) 11. Rb1 {[%emt 0:00:04]} ({Better is} 11. h3 $14 Be6 12. Nxe5 Bxe5 13. Rb1) 11... Bxf3 {[%emt 0:00:10]} ({Black should play} 11... Nf6 $11) 12. gxf3 {[%emt 0:00:02]} (12. Ba4+ $14 {stays ahead.} Kf8 13. Nxf3) 12... Nf6 {[%emt 0:00:08]} ({Black should try} 12... Bh6 $1 $17) 13. f4 $11 {[%emt 0:00:02] Against e6} Nc6 {[%emt 0:00:03][%cal Ob7b5]} 14. e5 {[%emt 0:00:06] Against b5} Nh5 {[%emt 0:00:13]} 15. Ne4 {[%emt 0:00:19]} (15. Nf3 $1 $15) 15... dxe5 $17 {[%emt 0:00:08]} 16. Rd1 {[%emt 0:00:17]} (16. fxe5 $17 O-O 17. Ng3 (17. Rd1 $2 Nd4 $17)) 16... Qc7 {[%emt 0:00:09]} 17. fxe5 {[%emt 0:00:09]} Bxe5 {[%emt 0:00:03]} 18. Bh6 {[%emt 0:00:32]} (18. Ng3 $17) 18... Bxh2+ $19 {[%emt 0:00:54]} 19. Kf1 {[%emt 0:00:01]} Be5 {[%emt 0:00:05]} (19... Bf4 $19 20. Ng5 Bxg5 21. Bxg5 h6) 20. Rd5 $2 {[%emt 0:00:11]} (20. Qe3 $15) 20... Rd8 $2 {[%emt 0:00:18]} (20... e6 $19 21. Rd2 Bf4 22. Bxf4 Qxf4 23. Nd6+ Kf8) 21. Rbd1 $36 {[%emt 0:00:10][%mdl 2048] aiming for Ba4. White has the initiative.} Rxd5 {[%emt 0:00:05]} (21... Bxb2 $2 22. Rxd8+ (22. Nd6+ Rxd6 23. Rxd6 Bg7 $11) 22... Qxd8 23. Rxd8+ Kxd8 24. Ba4 $18) 22. cxd5 {[%emt 0:00:04]} Nd4 {[%emt 0:00:02]} 23. Ba4+ {[%emt 0:00:01] This pair of bishops is nice.} Kd8 {[%emt 0:00:02]} 24. Qd3 {[%emt 0:00:27] Black must now prevent Rc1.} Nf5 $2 {[%emt 0:00:00][%mdl 8192]} (24... Qa5 $11 {and Black has nothing to worry.} 25. Ng5 Qxa4 26. Nxf7+ Ke8 27. Nxe5 Qb5) 25. Rc1 $1 $18 {[%emt 0:00:02]} Qb8 {[%emt 0:00:08][%cal Ob7b6] [#]} 26. Qb5 {[%emt 0:00:01][%csl Ga4][%cal Rb5d7][%mdl 64]} Qc8 {[%emt 0:00:13]} (26... Qc7 27. Rxc7) 27. Rxc8+ {[%emt 0:00:03]} Kxc8 {[%emt 0:00:00] [#]} 28. Qd7+ {[%emt 0:00:24]} (28. Nc5 $142 $1 Nd6 29. Qd7+ Kb8 30. Qxe7 Ng3+ 31. fxg3 Bxg3 32. Nd7+ Kc7 33. Ne5+ Kb8 34. Nd7+ Kc8 35. Qe3) 28... Kb8 29. Be3 {[%emt 0:00:00]} Rc8 {[%emt 0:00:04] [#] Against Bc6} 30. Nc5 {[%emt 0:00:00]} (30. Bxa7+ $142 $1 {[%mdl 512]} Kxa7 31. Qxc8) 30... Nd6 {[%emt 0:00:04] [#]} (30... Nxe3+ $18 31. fxe3 Rxc5 32. Qxe7 Rc1+ 33. Kg2 Bxb2) 31. Na6+ $1 {[%emt 0:00:00][%mdl 512]} Ka8 {[%emt 0:00:01] [#]} 32. Nc7+ {[%emt 0:00:00]} (32. Bc6 $142 $1 {[%mdl 512]} Rf8 (32... Rg8 33. Qc7) 33. Qc7 $1 Ng3+ 34. fxg3 Bxg3 35. Qb8+ $3 {[%mdl 512]} Rxb8 36. Nc7#) 32... Kb8 {[%emt 0:00:01]} 33. Na6+ {[%emt 0:00:10]} Ka8 $1 {[%emt 0:00:13][%mdl 32832] Weighted Error Value: White=0.56/Black=1.05. An unexpected result.} 1/2-1/2

[Event "Romanian Team Blitz Women 2022"]
[Site "Sebes"]
[Date "2022.12.04"]
[Round "4.5"]
[White "Ionescu, Irina"]
[Black "Chicarosie, Ioana-Bianca"]
[Result "1-0"]
[ECO "C00"]
[WhiteElo "2119"]
[BlackElo "1815"]
[Annotator "TA"]
[PlyCount "59"]
[EventDate "2022.12.04"]
[EventType "blitz"]
[EventCountry "ROU"]
[SourceTitle "playchess.com"]
[Source "ChessBase"]
[SourceQuality "1"]
[TimeControl "180+2"]

{[%evp 9,59,31,36,39,147,142,195,168,190,189,194,189,193,187,207,199,198,196,192,189,199,177,238,140,129,133,131,98,93,93,143,117,197,213,210,17,359,371,494,497,424,344,329,288,324,270,421,413,392,383,29989,29990]} 1. e4 {[%emt 0:00:02]} e6 {[%emt 0:00:00]} 2. d3 {[%emt 0:00:01]} d5 {[%emt 0:00:02]} 3. Nd2 {[%emt 0:00:01]} Nd7 {[%emt 0:00:09]} 4. g3 {[%emt 0:00:09]} c5 {[%emt 0:00:06]} 5. Bg2 {[%emt 0:00:01]} Ngf6 {[%emt 0:00:22] [#]} 6. Qe2 $146 {[%emt 0:00:07] C00: French: Unusual White 2nd moves.} ({Predecessor:} 6. Ngf3 Bd6 7. O-O O-O 8. Re1 Qc7 9. c3 e5 10. d4 cxd4 11. cxd4 exd4 12. Nxd4 dxe4 13. Nxe4 Nxe4 14. Rxe4 Qb6 15. Qb3 Qxb3 16. Nxb3 {½-½ (33) Perry,W-Catania,D (1720) ICCF email 2015}) 6... Qc7 {[%emt 0:00:37]} (6... b5 $14) 7. exd5 $16 {[%emt 0:00:10]} e5 {[%emt 0:00:14]} (7... Nb6 $16) 8. Ngf3 {[%emt 0:00:22] White is clearly better.} Bd6 {[%emt 0:00:09]} 9. c4 {[%emt 0:00:03]} O-O {[%emt 0:00:06]} 10. O-O {[%emt 0:00:01]} a6 {[%emt 0:00:08]} 11. Nh4 {[%emt 0:00:05]} Nb6 {[%emt 0:00:13]} 12. Ne4 {[%emt 0:00:09]} Nxe4 {[%emt 0:00:10]} 13. dxe4 {[%emt 0:00:02]} ({Don't do} 13. Bxe4 f5) 13... Bd7 {[%emt 0:00:06]} 14. b3 {[%emt 0:00:05]} Nc8 {[%emt 0:00:11]} 15. f4 {[%emt 0:00:09]} Ne7 {[%emt 0:00:12]} (15... f6 $142 16. Nf5 Bxf5) 16. fxe5 {[%emt 0:00:09]} ({White should play} 16. f5 $18) 16... Bxe5 {[%emt 0:00:01]} 17. Bf4 {[%emt 0:00:01]} Ng6 {[%emt 0:00:07]} 18. Bxe5 {[%emt 0:00:17]} Nxe5 {[%emt 0:00:11]} 19. Nf3 {[%emt 0:00:27]} b5 {[%emt 0:00:08]} (19... Rfe8 $142) 20. Rad1 {[%emt 0:00:21] d6 is the strong threat.} Qd6 {[%emt 0:00:07]} (20... Bg4 $16) 21. Nxe5 $18 {[%emt 0:00:05]} Qxe5 {[%emt 0:00:01]} 22. d6 $2 {[%emt 0:00:06] [#]} (22. b4 $18) 22... Bc6 $2 {[%emt 0:00:05][%mdl 8192] Black cannot hold the game after this.} (22... Be6 $1 $11 {and Black is okay.}) 23. Rf5 {[%emt 0:00:03]} Qe6 {[%emt 0:00:03]} 24. Rxc5 {[%emt 0:00:05]} Rac8 {[%emt 0:00:07]} 25. Rh5 {[%emt 0:00:31][%cal Bc5h5,Bh5h4,Bh4c4][%mdl 32] [#] Black must now prevent Bh3.} g6 {[%emt 0:00:09]} 26. Rh4 {[%emt 0:00:05]} bxc4 {[%emt 0:00:04]} 27. bxc4 {[%emt 0:00:08] Threatens to win with Bh3.} ({Resist} 27. Qxc4 $6 Qe5 28. Rf4 (28. Qxa6 Qc5+ 29. Kh1 Bb5 $16) 28... Bb5 $18) 27... Rfd8 {[%emt 0:00:02]} (27... Qe5 {was necessary.} 28. Qe3 f6) 28. e5 {[%emt 0:00:04]} Bxg2 {[%emt 0:00:02]} 29. Kxg2 {[%emt 0:00:02]} ({Not} 29. Qxg2 Qxe5 30. Rhd4 Qc5 $16) 29... Qxc4 $2 {[%emt 0:00:03]} (29... Rc6 $18 30. Rhd4 Rdc8) 30. Rxc4 {[%emt 0:00:02] Weighted Error Value: White=0.30/Black=0.74} 1-0